Cogmind - Beta 14 X2 @@@ ROGUE MODE // 2024.08.02 @ 22:22:56 Player: alice_fexa Result: Heading to fleet! Performance ------------- Evolutions (9) 4500 Regions Visited (25) 5000 Robots Destroyed (363) 1815 Value Destroyed (18678) 18678 Prototype IDs (83) 1660 Alien Tech Used (11) 2200 Bonus (26193) 26193 TOTAL SCORE: 60046 Bonus ------- Triggered High Security 1000 High Alert Combat Kills 4439 Follower Combat Kills 1922 Network Hubs Disabled 200 Aligned with FarCom 300 Met Zhirov 300 Built Enhanced Grunts 300 A7 Reached Mainframe 300 Met R17 at Cetus 500 Used Core Reset Matrix 3000 Met R17 at Research 2000 Met MAIN.C 5000 Destroyed MAIN.C Shell 5000 Win 3000 Friendly Fire -1068 Cogmind --------- Core Integrity 1359/1850 Matter 300/300 Energy 812/820 System Corruption 0% Temperature Cool (14) Movement Walking (47) Location To Fleet Rendezvous Parts ------- > --- POWER (3) -------- Graviton Reactor Graviton Reactor Graviton Reactor > --- PROPULSION (5) --- Centrium-Gravjet Exoskeleton > --- UTILITY (14) ----- Armored Scrap Engine High-capacity Storage Unit Experimental Optical Array Advanced Targeting Computer Advanced Targeting Computer Experimental Core Analyzer Heavy Regenerative Plating Heavy Regenerative Plating Experimental Focal Shield EM Disruption Field Spacefold Activator > --- WEAPON (4) ------- Heavy Quantum Rifle Matter Neutralizer Hpw. Accelerated Helical Construct/C > --- INVENTORY (20) --- Quantum Reactor Quantum Reactor Energy Well (350) Matter Compressor (250) Structural Scanner Advanced Kinecellerator Heavy Armor Plating Heavy Regenerative Plating Remote Shield Antimissile System Integrity Redistributor Subatomic Replicator Gamma Bomb Array Neutron Missile Launcher Advanced Datajack Peak State ------------ > --- POWER ------------ Graviton Reactor Graviton Reactor Graviton Reactor > --- PROPULSION ------- Centrium-Gravjet Exoskeleton > --- UTILITY ---------- Armored Scrap Engine High-capacity Storage Unit Experimental Optical Array Advanced Targeting Computer Advanced Targeting Computer Experimental Core Analyzer Advanced Reaction Control System Advanced Phase Shifter Heavy Regenerative Plating EM Disruption Field Advanced Hacking Suite Spacefold Activator > --- WEAPON ----------- Heavy Quantum Rifle Matter Neutralizer Hpw. Accelerated Helical Construct/C > --- INVENTORY -------- Quantum Reactor Energy Well Matter Compressor Structural Scanner Advanced Kinecellerator Heavy Armor Plating Heavy Regenerative Plating Heavy Regenerative Plating Experimental Focal Shield Remote Shield Antimissile System Integrity Redistributor Subatomic Replicator Gamma Bomb Array Neutron Missile Launcher Advanced Datajack [Rating: 224] Favorites ----------- Power Light Quantum Reactor Engine Ion Engine Power Core Micro Fission Core Reactor Light Quantum Reactor Propulsion Constructs Treads Light Treads Leg Constructs Wheel Wheel Utility Improved Targeting Computer Device Armored Scrap Engine Storage High-capacity Storage Unit Processor Improved Targeting Computer Hackware Advanced Hacking Suite Protection Improved Medium Armor Plating Artifact Spacefold Activator Weapon Constructs Energy Gun Quantum Rifle Energy Cannon Matter Neutralizer Ballistic Gun Assault Rifle Ballistic Cannon Constructs Launcher Precision Grenade Launcher Special Weapon Advanced Remote Datajack Slashing Weapon Longsword +1 Piercing Weapon Plasma Lance Special Melee Weapon Advanced Datajack Build | -11 -10 -10 -10 -9 -8 -7 -7 -7 -5 -5 -5 -5 -5 -4 -4 -4 -4 -3 -3 -3 -3 -2 -2 -1 -1 ------- Run | Yrd Mat Min Exi Min Mat Fac Sto Rec Fac Ext Cet Arc Hub Fac Upp Upp Zhi Pro Res Qua Sec Res Tes Acc Com Slots Evolved 18 | . . . . . 4 2 . . 4 . . . . 2 . . . . 2 . . 2 . 2 . Power 2 | . . . . . . . . . . . . . . 1 . . . . . . . . . 1 . Propulsion 3 | . . . . . 1 . . . 1 . . . . 1 . . . . . . . . . . . Utility 12 | . . . . . 3 2 . . 2 . . . . . . . . . 2 . . 2 . 1 . Weapon 1 | . . . . . . . . . 1 . . . . . . . . . . . . . . . . Parts Attached 473 | 6 10 2 . 4 22 9 26 18 24 16 10 2 5 18 5 3 12 5 22 26 84 39 41 43 21 Power 45 | 1 1 . . 2 4 . 3 1 2 3 . . . 3 . . 2 1 4 . 6 4 2 6 . Engine 8 | 1 1 . . 1 2 . 1 1 . . . . . 1 . . . . . . . . . . . Core 11 | . . . . 1 2 . 2 . 2 3 . . . 1 . . . . . . . . . . . Reactor 26 | . . . . . . . . . . . . . . 1 . . 2 1 4 . 6 4 2 6 . Propulsion 25 | 2 3 1 . . 6 2 5 6 . . . . . . . . . . . . . . . . . Treads 19 | 2 3 . . . 6 2 4 2 . . . . . . . . . . . . . . . . . Leg 2 | . . . . . . . . 2 . . . . . . . . . . . . . . . . . Wheel 4 | . . 1 . . . . 1 2 . . . . . . . . . . . . . . . . . Hover . | . . . . . . . . . . . . . . . . . . . . . . . . . . Flight . | . . . . . . . . . . . . . . . . . . . . . . . . . . Utility 293 | 1 4 . . . 7 3 11 7 13 11 7 2 5 12 3 2 9 4 16 21 68 26 28 25 8 Device 164 | . 2 . . . 2 1 6 4 6 5 . 2 4 6 3 2 5 3 8 11 37 15 16 20 6 Storage 10 | 1 1 . . . . . 1 1 . . . . . 1 . . . . . . 3 1 . 1 . Processor 25 | . 1 . . . 1 1 . 1 2 1 . . . 1 . . . . 1 1 4 5 4 2 . Hackware 3 | . . . . . . . . . 1 . . . . . . . . . 1 1 . . . . . Protection 84 | . . . . . 4 1 4 1 4 5 7 . 1 4 . . 4 1 6 8 21 5 6 1 1 Artifact 7 | . . . . . . . . . . . . . . . . . . . . . 3 . 2 1 1 Weapon 110 | 2 2 1 . 2 5 4 7 4 9 2 3 . . 3 2 1 1 . 2 5 10 9 11 12 13 Energy Gun 47 | 1 2 1 . 2 4 3 1 1 1 . . . . 2 1 . . . 1 3 6 3 4 5 6 Energy Cannon 18 | . . . . . 1 . 3 . 3 . . . . . . . . . . . . 4 3 3 1 Ballistic Gun 3 | 1 . . . . . . . . . . . . . . . . . . . . 2 . . . . Ballistic Cannon 5 | . . . . . . . 1 2 . . . . . . . . . . . 1 . . 1 . . Launcher 21 | . . . . . . . 2 . 1 1 1 . . 1 1 1 1 . . . . 2 2 4 4 Special Weapon 1 | . . . . . . . . . . . . . . . . . . . . . . . . . 1 Impact Weapon . | . . . . . . . . . . . . . . . . . . . . . . . . . . Slashing Weapon 9 | . . . . . . 1 . 1 4 1 2 . . . . . . . . . . . . . . Piercing Weapon 5 | . . . . . . . . . . . . . . . . . . . 1 1 2 . 1 . . Special Melee Weapon 1 | . . . . . . . . . . . . . . . . . . . . . . . . . 1 Unidentified Prototypes 36 | . . . . . 4 2 3 1 2 . 1 . 1 . . . 4 . 7 1 1 . 8 1 . Parts Lost 58 | . . . . . 3 . 8 8 8 2 . . . . . 1 . 4 . . 9 3 3 6 3 Power 10 | . . . . . . . 2 . 1 1 . . . . . . . 1 . . 2 . 1 2 . Propulsion 7 | . . . . . 1 . 3 3 . . . . . . . . . . . . . . . . . Utility 31 | . . . . . 2 . 1 3 5 1 . . . . . . . 2 . . 6 3 2 4 2 Weapon 10 | . . . . . . . 2 2 2 . . . . . . 1 . 1 . . 1 . . . 1 Highest Loss Streak 5 | . . . . . 1 . 5 5 3 1 . . . . . 1 . 3 . . 4 2 3 2 2 To Critical Strikes . | . . . . . . . . . . . . . . . . . . . . . . . . . . Average Slot Usage (%) 77 | . 98 100 100 100 99 100 99 82 69 70 70 70 70 68 68 67 67 60 70 70 69 75 72 73 71 Engine 2 | . 14 14 14 7 4 7 5 . 3 . . . . 4 . . . . . . . . . . . Core 2 | . . . . 6 4 . 1 6 1 4 5 5 5 5 5 5 5 5 2 . . . . . . Reactor 3 | . . . . . . . . . . . . . . . 5 5 4 1 5 9 8 8 7 10 11 Treads 6 | . 28 15 14 14 25 23 18 10 . . . . . 2 5 5 4 . . . . 4 2 . . Leg 1 | . . . . . . . . 2 2 . . . . . . . . 4 2 . . . 1 2 3 Wheel 1 | . . 12 14 14 1 . 3 . . . . . . . . . . . . . . . . . . Device 14 | . 6 14 14 14 15 23 19 11 12 17 11 11 17 15 15 15 15 11 18 17 17 16 13 14 13 Storage 6 | . 14 14 14 14 9 7 7 7 5 5 5 5 5 5 5 5 5 5 4 4 4 4 4 3 3 Processor 13 | . 6 . . . 9 15 15 17 17 17 17 17 17 15 15 15 15 15 14 14 12 14 18 19 15 Hackware 1 | . . . . . . . . . . . . . . . . . . . 4 4 4 4 4 3 2 Protection 5 | . . . . . 10 7 10 9 7 4 10 11 5 5 5 5 4 8 4 5 5 8 3 3 3 Energy Gun 6 | . 19 28 28 28 18 14 11 3 2 . . . . 1 1 3 . . 3 1 3 2 2 4 2 Energy Cannon 2 | . . . . . . . 2 1 1 4 5 5 5 5 5 5 4 . . . . 6 8 6 4 Ballistic Cannon 1 | . . . . . . . . 5 . . . . . . . . . 4 4 4 3 . 1 . 1 Naked Turns . | . . . . . . . . . . . . . . . . . . . . . . . . . . Heaviest Build 160 | 13 30 30 30 36 45 44 65 64 49 53 58 55 49 85 86 90 94 92 99 109 108 136 138 154 160 Greatest Support 185 | 40 40 40 10 10 60 62 62 62 93 93 93 93 93 93 93 93 93 111 143 121 131 131 169 185 185 Greatest Overweight (x) 6 | . . 2 2 3 3 . 6 5 1 . . . . . . . 1 1 1 . . 1 1 1 . Average Overweight (x) . | . . 1 2 2 . . 3 . . . . . . . . . . . . . . . . . . Largest Inventory Capacity 20 | 8 15 15 15 15 15 15 20 20 15 15 15 15 15 20 20 20 20 20 20 20 20 20 20 20 20 Average Capacity 17 | 7 12 15 15 15 15 15 19 17 15 15 15 15 15 16 20 20 20 20 20 20 20 20 20 20 20 Most Carried 20 | 4 15 15 15 15 15 15 20 20 15 15 15 15 15 20 20 20 20 20 20 20 20 20 20 20 20 Average Carried 17 | 2 10 15 14 14 14 14 17 16 14 14 15 15 15 15 17 19 19 18 19 19 19 19 19 19 19 Final Capacity 20 | 8 15 15 15 15 15 15 20 15 15 15 15 15 15 20 20 20 20 20 20 20 20 20 20 20 20 Final Carried 20 | 4 15 15 15 15 15 15 20 15 14 15 15 15 15 20 20 19 20 18 20 20 19 20 20 17 17 Scrap Engine Consumption 179 | . . . . . . . . 31 21 14 11 . 5 7 . . 5 4 27 . 10 11 19 12 2 Constructs Created 4 | . . . . . . . . 2 . . . . . . . . 1 . . . 1 . . . . Constructs Modified 68 | . . . . . . . . 9 11 3 . . . 1 . . 7 3 11 . 3 4 8 7 1 Class Distribution -------------------- 18% | Mutant 18% | Scavenger-Mutant 14% | Skirmisher 12% | Alien-Gunner 6% | Scavenger-Scout 5% | Scavenger-Skirmisher 4% | Scavenger-Ninja 4% | Scavenger-Construct 3% | Alien-Skirmisher 3% | Commander-Construct Dominant Class ---------------- Mutant | -10/Materials Scavenger-Mutant | -10/Mines Scavenger-Mutant | -10/Exiles Scavenger-Mutant | -9/Mines Mutant | -8/Materials Scavenger-Mutant | -7/Factory Scavenger-Mutant | -7/Storage Mutant | -7/Recycling Mutant | -5/Factory Scavenger-Construct | -5/Extension Commander-Construct | -5/Cetus Commander-Construct | -5/Archives Scavenger-Construct | -5/Hub_04(d) Scavenger-Ninja | -4/Factory Skirmisher | -4/Upper Caves Skirmisher | -4/Upper Caves Skirmisher | -4/Zhirov Skirmisher | -3/Proximity Caves Scavenger-Skirmisher | -3/Research Scavenger-Ninja | -3/Quarantine Scavenger-Scout | -3/Section 7 Alien-Skirmisher | -2/Research Alien-Gunner | -2/Testing Alien-Gunner | -1/Access Alien-Gunner | -1/Command Resources | -11 -10 -10 -10 -9 -8 -7 -7 -7 -5 -5 -5 -5 -5 -4 -4 -4 -4 -3 -3 -3 -3 -2 -2 -1 -1 ----------- Run | Yrd Mat Min Exi Min Mat Fac Sto Rec Fac Ext Cet Arc Hub Fac Upp Upp Zhi Pro Res Qua Sec Res Tes Acc Com Matter Collected 8382 | 192 400 179 . 101 215 90 235 355 314 505 225 73 132 316 297 52 167 370 930 540 1580 344 195 285 290 Remotely 5 | . . . . . . . . . . . . . . . . . . . . . . 5 . . . Salvage Created 21314 | . 472 29 . 114 1261 58 1011 706 1300 1492 246 67 26 532 124 62 183 474 679 836 2065 1671 1433 4178 2295 Parts 857 | . 32 4 . 10 50 4 27 21 71 47 11 3 3 20 . 8 . 7 17 36 113 80 53 163 77 Haulers Intercepted 9 | . 1 . . . 2 1 . . 1 . . . . . . . . . 2 1 . . 1 . . Recyclers Shooed 14 | . 1 . . . 2 1 . 2 1 1 . . . . . . . . . 1 2 1 1 . 1 Parts Field Recycled . | . . . . . . . . . . . . . . . . . . . . . . . . . . Retrieved Matter . | . . . . . . . . . . . . . . . . . . . . . . . . . . Parts Self-Destructed 9 | . . . . . . . . . . . . . . . . 4 . 5 . . . . . . . Prevented 2 | . . . . . . . . . . . . . . . . . . 2 . . . . . . . Kills | -11 -10 -10 -10 -9 -8 -7 -7 -7 -5 -5 -5 -5 -5 -4 -4 -4 -4 -3 -3 -3 -3 -2 -2 -1 -1 ------- Run | Yrd Mat Min Exi Min Mat Fac Sto Rec Fac Ext Cet Arc Hub Fac Upp Upp Zhi Pro Res Qua Sec Res Tes Acc Com Combat Hostiles Destroyed 256 | . 7 . . 6 20 . 16 7 19 19 3 1 . 10 1 5 . 7 6 3 30 14 15 47 20 Melee 14 | . . . . . . . . 1 7 6 . . . . . . . . . . . . . . . Guns 75 | . 7 . . 6 19 . 10 3 5 . . . . . . . . . 2 . 14 . 1 8 . Cannons 101 | . . . . . . . 5 3 2 13 . 1 . 5 . 1 . 5 4 3 15 5 10 22 7 AOE 30 | . . . . . . . . . 4 . . . . 5 . 4 . 2 . . 1 2 . 6 6 Classes Destroyed 27 | . 5 1 . 1 2 . 1 2 3 1 . . . . . . . 1 2 . 2 . 2 3 1 Worker 12 | . . . . . 1 . 1 . 2 . . . . 2 . . . . 1 . 1 . 1 1 2 Builder 13 | . . . . . . . . . 1 1 . . . . . . . . . 2 . 2 1 6 . Tunneler 2 | . . 1 . 1 . . . . . . . . . . . . . . . . . . . . . Hauler 9 | . 1 . . . 2 1 . . 1 . . . . . . . . . 2 1 . . 1 . . Recycler 21 | . 1 . . . . . 1 4 2 1 . . . . . . . . 1 3 2 3 1 1 1 Carrier 1 | . . . . . . . . . . . . . . . . . . . . . . . . 1 . Mechanic 4 | . . . . . . . . . 1 . . . . . . . . . . . . . 1 1 1 Operator 9 | . 1 . . . 1 . . . . . . . . 1 . . . . . 2 2 . 1 . 1 Drone 2 | . . . . . . . . . . . . . . . . . . 2 . . . . . . . Watcher 33 | . 2 . . . 4 . . . 2 2 2 . 1 3 . . . . 1 3 2 3 3 5 . Swarmer 27 | . . . . 6 . . . . 4 . . . . 5 . 5 . . . . 3 . . 4 . Cutter 3 | . . . . . . . . . . . . . . . . . . . . . 3 . . . . Saboteur 1 | . . . . . . . . . . . . . . . . . . . . . . . . . 1 Grunt 87 | . 7 . . . 16 . 9 . 8 11 . . . 2 . . . 2 1 1 3 . 3 20 4 Brawler 2 | . . . . . . . . . . . . . . . . . . . . . . . . 1 1 Duelist 3 | . . . . . . . . . . . . . . . . . . . . . . . 1 1 1 Protector 2 | . . . . . . . . . . . . . . . . . . . . . . . . 1 1 Researcher 1 | . . . . . . . . . . . . . . . . . . . . . . . 1 . . Sentry 34 | . . . . . 4 . 6 4 1 7 . 1 . 1 1 . . 1 1 . 2 1 . 2 2 Demolisher 1 | . . . . . . . . . . . . . . . . . . . 1 . . . . . . Hunter 35 | . . . . . . . . . 4 . . . . 2 . . . 2 1 . 2 8 2 10 4 Programmer 46 | . . . . . . . 1 . 2 . . . . . . . . . . 2 15 5 8 8 5 Behemoth 1 | . . . . . . . . . . 1 . . . . . . . . . . . . . . . Cetus Guard 3 | . . . . . . . . . . . 3 . . . . . . . . . . . . . . Enhanced Grunt 1 | . . . . . . . . . . . . . . 1 . . . . . . . . . . . Striker 2 | . . . . . . . . . . . . . . . . . . . 2 . . . . . . Executioner 2 | . . . . . . . . . . . . . . . . . . . . . 2 . . . . Protovariant L 1 | . . . . . . . . . . . . . . . . . . . . . . . 1 . . Scientist 1 | . . . . . . . . 1 . . . . . . . . . . . . . . . . . Scrapper 3 | . . . . . . . . 3 . . . . . . . . . . . . . . . . . Packrat 1 | . . . . . . . . . . . . . . . 1 . . . . . . . . . . Thug 1 | . . . . . . . . . . 1 . . . . . . . . . . . . . . . Best Kill Streak 14 | . 2 1 . 4 3 1 9 3 5 4 3 1 1 5 1 4 . 3 1 3 5 9 5 14 12 Combat Bots Only 12 | . 2 . . 4 3 . 9 2 4 4 2 1 . 5 1 4 . 3 1 2 5 5 4 11 12 Max Kills in Single Turn 4 | . 1 1 . 1 2 1 1 1 4 1 1 1 1 3 1 3 . 1 1 1 1 2 1 4 1 Gunslinging . | . . . . . . . . . . . . . . . . . . . . . . . . . . Exploded 4 | . . . . . . . . . 4 . . . . 3 . 3 . 1 . . 1 1 . 3 1 Melee 1 | . . . . . . . . 1 1 1 . . . . . . . . . . . . . . . Uniques/NPCs Destroyed 1 | . . . . . . . . . . . . . . . . . . . . . . . . . 1 MAIN.C Shell (-1/Command) Combat | -11 -10 -10 -10 -9 -8 -7 -7 -7 -5 -5 -5 -5 -5 -4 -4 -4 -4 -3 -3 -3 -3 -2 -2 -1 -1 -------- Run | Yrd Mat Min Exi Min Mat Fac Sto Rec Fac Ext Cet Arc Hub Fac Upp Upp Zhi Pro Res Qua Sec Res Tes Acc Com Hostile Shots Fired 1837 | . 33 . . 18 82 . 312 129 103 107 20 1 2 66 13 12 . 69 23 17 225 85 110 222 188 Missed 666 | . 7 . . 3 24 . 97 42 37 46 13 1 1 22 2 4 . 17 9 7 72 35 30 111 86 Damage Taken 22713 | . 348 . . 120 914 . 2003 870 1555 1420 158 . 47 881 219 117 . 1076 781 331 3719 1083 1573 2793 2705 Core 2571 | . 73 . . 25 81 . 210 140 175 186 25 . . 107 19 12 . 141 79 . 625 48 237 172 216 Absorbed by Shields 67 | . . . . . . . . . . . 67 . . . . . . . . . . . . . . Redirected to Shielding 86 | . . . . . . . . . . . . . . . . . . . . . . 86 . . . Ignored by Resistances 1847 | . . . . . . . . . . . . . . . . . . . . . 377 107 370 239 754 Regen/Repaired (Parts) 6507 | . . . . . . . . 41 105 310 200 . 100 531 . . 765 250 251 . 549 277 1235 1197 696 Core Remaining (%) 71 | 100 . . . 60 85 . . 50 . . . . 61 . . . . 75 . . 54 . 83 . 73 Volleys Fired 971 | . 41 1 . 13 89 5 55 25 34 66 18 9 12 44 19 9 3 41 46 36 129 32 92 101 51 Largest 4 | . 2 1 . 2 2 2 2 2 3 1 1 1 1 2 2 2 1 1 2 2 4 4 4 4 3 Hottest 447 | . 105 40 . 131 140 131 141 141 190 54 54 54 54 135 135 135 54 54 148 148 202 368 374 447 447 Shots Fired 1744 | . 81 1 . 26 178 10 110 50 70 66 18 9 12 65 24 10 3 41 78 39 227 96 205 226 99 Gun 762 | . 81 1 . 26 178 10 68 12 45 . . . . 22 5 1 . . 32 3 125 36 24 68 25 Cannon 938 | . . . . . . . 42 38 24 66 11 9 12 41 18 7 3 39 46 36 102 57 181 148 58 Launcher 44 | . . . . . . . . . 1 . 7 . . 2 1 2 . 2 . . . 3 . 10 16 Special . | . . . . . . . . . . . . . . . . . . . . . . . . . . Kinetic 416 | . 34 . . . . . . 35 22 . . . . . . . . 27 46 36 107 32 50 . 27 Thermal 1282 | . 47 1 . 26 178 10 110 15 47 66 11 9 12 63 23 8 3 12 32 3 120 59 155 216 56 Explosive 9 | . . . . . . . . . 1 . . . . 2 1 2 . 2 . . . . . 1 . Electromagnetic 37 | . . . . . . . . . . . 7 . . . . . . . . . . 5 . 9 16 Robot Hit Streak 27 | . 10 1 . 2 20 10 26 14 9 10 15 4 5 7 9 3 5 15 15 8 15 5 27 16 9 Robot Miss Streak 6 | . 3 . . 4 5 2 1 3 3 2 2 1 2 4 2 3 1 3 3 3 4 6 4 6 3 Penetration Max 1 | . . . . . . . . . 1 . . . . . . . . 1 1 . 1 1 . . . Secondary Targets 4 | . . . . 4 . . . . . . . . . . . . . . . . . . . . . Max Gunslinging Chain 1 | . . . . 1 . . . . . . . . . . . . . . . . . . . . . Shots Hit Robots 1154 | . 55 1 . 11 133 7 94 45 86 68 7 8 8 43 11 4 2 29 54 31 120 41 102 122 72 Core Hits 682 | . 22 1 . 7 53 1 38 19 55 33 9 3 . 23 4 5 2 8 13 14 59 42 45 141 85 Critical Kills 10 | . . . . . . . . . . . . . . . . . . . . . . 5 5 . . Critical Parts Destroyed 2 | . . . . . . . . . . . . . . . . . . . . . 1 1 . . . Critical Strikes 46 | . . . . . 10 1 6 4 3 8 . 1 . 1 . . . . . . 1 6 5 . . Burn 23 | . . . . . 10 1 6 1 . 3 . 1 . 1 . . . . . . . . . . . Meltdown 10 | . . . . . . . . . . . . . . . . . . . . . . 5 5 . . Destroy 2 | . . . . . . . . . . . . . . . . . . . . . 1 1 . . . Blast 2 | . . . . . . . . 2 . . . . . . . . . . . . . . . . . Sever 9 | . . . . . . . . 1 3 5 . . . . . . . . . . . . . . . Melee Attacks 113 | . . . . . . 2 . 10 32 36 . . 2 3 . . . . . 17 8 . 2 . 1 Impact . | . . . . . . . . . . . . . . . . . . . . . . . . . . Slashing 85 | . . . . . . 2 . 10 32 36 . . 2 3 . . . . . . . . . . . Piercing 27 | . . . . . . . . . . . . . . . . . . . . 17 8 . 2 . . Sneak Attacks 19 | . . . . . . . . 3 7 . . . 1 1 . . . . . 6 1 . . . . Combat Hostiles 2 | . . . . . . . . 1 1 . . . . . . . . . . . . . . . . Follow-up Attacks 1 | . . . . . . . . . . 1 . . . . . . . . . . . . . . . Damage Inflicted 56660 | . 674 12 . 162 2511 136 1976 1535 3316 3500 1639 486 530 2382 568 445 235 2339 2989 2157 6064 2553 4840 10069 5542 Guns 13116 | . 674 12 . 162 2511 136 1219 289 708 . . . . 321 95 . . . 683 72 2508 560 424 2011 731 Cannons 31462 | . . . . . . . 757 691 546 2486 416 486 446 1610 364 121 235 2239 2306 1389 3247 1505 4377 5200 3041 Explosions 7670 | . . . . . . . . . 309 . 1223 . . 326 109 324 . 100 . . 163 488 . 2858 1770 Melee 4412 | . . . . . . . . 555 1753 1014 . . 84 125 . . . . . 696 146 . 39 . . Ramming . | . . . . . . . . . . . . . . . . . . . . . . . . . . Kinetic 12918 | . 291 . . . . . . 613 368 . . . . . . . . 1357 2306 1389 3466 472 952 . 1704 Thermal 32461 | . 383 12 . 162 2511 136 1976 367 967 2486 1068 486 446 1931 459 121 235 882 683 72 2289 1535 3849 7337 2068 Explosive 1807 | . . . . . . . . . 228 . . . . 326 109 324 . 100 . . 163 . . 557 . Electromagnetic 5062 | . . . . . . . . . . . 571 . . . . . . . . . . 546 . 2175 1770 Impact . | . . . . . . . . . . . . . . . . . . . . . . . . . . Slashing 3531 | . . . . . . . . 555 1753 1014 . . 84 125 . . . . . . . . . . . Piercing 881 | . . . . . . . . . . . . . . . . . . . . 696 146 . 39 . . Highest Corruption 7 | . . . . . . . . . 1 1 1 1 1 . . . . . . . 7 . . . . Average Corruption 2 | . . . . . . . . . 1 1 1 1 1 . . . . . . . 4 . . . . Corruption Purged . | . . . . . . . . . . . . . . . . . . . . . . . . . . Corruption Blocked . | . . . . . . . . . . . . . . . . . . . . . . . . . . Effects 58 | . . . . . . . . . 4 10 3 . 2 . . . . . . . 39 . . . . Message Errors 14 | . . . . . . . . . 2 1 . . 1 . . . . . . . 10 . . . . Matter Fused 11 | . . . . . . . . . . 2 1 . . . . . . . . . 8 . . . . Heat Flow Errors 5 | . . . . . . . . . . 2 . . . . . . . . . . 3 . . . . Energy Discharges 6 | . . . . . . . . . . 1 1 . . . . . . . . . 4 . . . . Parts Rejected 1 | . . . . . . . . . . 1 . . . . . . . . . . . . . . . Data Loss (minor) 10 | . . . . . . . . . . 2 1 . 1 . . . . . . . 6 . . . . Data Loss (major) 7 | . . . . . . . . . 1 1 . . . . . . . . . . 5 . . . . Weapon Failures 4 | . . . . . . . . . 1 . . . . . . . . . . . 3 . . . . Overload Shots . | . . . . . . . . . . . . . . . . . . . . . . . . . . Overflow Damage 3347 | . . . . . . . 5 44 164 189 39 10 127 116 31 6 66 281 146 221 567 95 193 465 582 Projectiles 2826 | . . . . . . . 5 2 10 170 36 10 73 47 25 6 66 281 146 144 526 95 193 409 582 Explosions 109 | . . . . . . . . . . . 3 . . 32 6 . . . . . 12 . . 56 . Melee 412 | . . . . . . . . 42 154 19 . . 54 37 . . . . . 77 29 . . . . Knockbacks 63 | . . . . . . . . 5 . . . . . . . . . 4 12 6 18 . 12 . 6 Impact . | . . . . . . . . . . . . . . . . . . . . . . . . . . Kinetic 60 | . . . . . . . . 5 . . . . . . . . . 4 12 6 17 . 11 . 5 Secondary 3 | . . . . . . . . . . . . . . . . . . . . . 1 . 1 . 1 Self-Inflicted Damage 570 | . . . . . . . . . 28 . 13 . . 72 52 . . 41 . . 104 . . 260 . Shots 11 | . . . . . . . . . 1 . 1 . . 2 1 . . 2 . . 1 . . 3 . Rammed . | . . . . . . . . . . . . . . . . . . . . . . . . . . Targets Rammed . | . . . . . . . . . . . . . . . . . . . . . . . . . . Kicked . | . . . . . . . . . . . . . . . . . . . . . . . . . . Crushed . | . . . . . . . . . . . . . . . . . . . . . . . . . . Highest Temperature 266 | . 117 . . 150 240 . 60 47 216 61 14 14 5 266 163 161 13 39 150 . 184 141 141 138 138 Average Temperature 64 | . 42 . . 39 58 . 20 25 52 52 7 7 5 86 53 81 13 15 25 . 64 70 56 102 109 Received Heat Transfer 3221 | . 213 . . . 504 . 786 392 171 348 . . 9 69 27 . . 72 9 9 108 . 153 207 144 Siege Activations . | . . . . . . . . . . . . . . . . . . . . . . . . . . Robots Corrupted 23 | . . . . . . . . . . . 3 . . . . . . . . . . 2 . 11 7 Combat Hostiles 22 | . . . . . . . . . . . 3 . . . . . . . . . . 2 . 10 7 Parts Fried 49 | . . . . . . . . . . . 3 . . . . . . . . . . 3 . 24 19 Impact Corruptions 1 | . . . . . . . . . . . . . . . . . . . . . . . . . 1 Robots Melted 15 | . . . . . 1 . 1 . 1 . . . . . 1 . . . . . . 5 5 1 . Combat Hostiles 14 | . . . . . 1 . 1 . 1 . . . . . 1 . . . . . . 5 4 1 . Parts Melted 98 | . 1 . . 1 16 . 17 2 7 8 . . . 3 2 . . . 1 . 7 13 13 6 1 Heat Transferred 33364 | . 872 25 . 359 5735 333 4048 860 1345 2028 609 370 259 1591 370 74 111 370 823 74 2664 1295 3181 4714 1254 Parts Sabotaged . | . . . . . . . . . . . . . . . . . . . . . . . . . . Parts Stolen 3 | . . . . . . . . . . . . . . . 3 . . . . . . . . . . Parts Stripped . | . . . . . . . . . . . . . . . . . . . . . . . . . . Power Chain Reactions 6 | . . . . . . . . . . . 2 . . . . . . . . . . . . 3 1 Alert | -11 -10 -10 -10 -9 -8 -7 -7 -7 -5 -5 -5 -5 -5 -4 -4 -4 -4 -3 -3 -3 -3 -2 -2 -1 -1 ------- Run | Yrd Mat Min Exi Min Mat Fac Sto Rec Fac Ext Cet Arc Hub Fac Upp Upp Zhi Pro Res Qua Sec Res Tes Acc Com Peak Influence 2000 | . 174 42 . 273 424 200 354 160 347 350 388 252 931 943 . . . . 80 166 683 730 845 2000 1970 Initial 1280 | . . 27 . . 37 191 91 138 112 133 84 75 88 455 . . . . . . 29 384 410 300 1280 Average 289 | . 44 38 . 105 187 195 153 42 232 174 216 175 579 664 . . . . 17 66 326 503 603 922 1586 Maximum Alert Level 5 | . . . . 1 2 1 1 . 1 1 1 1 3 3 . . . . . . 2 3 3 5 5 Low Security (%) 57 | 100 100 100 . 90 64 71 70 100 38 72 80 49 24 . . . . . 100 100 30 . . . . Level 1 14 | . . . . 9 17 28 29 . 61 27 19 50 6 . . . . . . . 33 14 3 14 . Level 2 17 | . . . . . 18 . . . . . . . 13 46 . . . . . . 36 83 72 40 . Level 3 4 | . . . . . . . . . . . . . 55 53 . . . . . . . 2 23 8 . Level 4 2 | . . . . . . . . . . . . . . . . . . . . . . . . 22 58 Level 5 . | . . . . . . . . . . . . . . . . . . . . . . . . . 17 High Security 1 | . . . . . . . . . . . . . . . . . . . . . . . . 12 23 Max Security . | . . . . . . . . . . . . . . . . . . . . . . . . . . Squads Dispatched 87 | . 2 . . . 4 1 5 . 6 2 . . 4 2 . . . . 6 4 9 2 6 27 7 Investigation 16 | . 2 . . . 1 . 1 . 2 . . . 3 1 . . . . 2 . . . 1 3 . Extermination 22 | . . . . . . 1 1 . 3 . . . 1 1 . . . . . 1 5 1 4 3 1 Reinforcement 23 | . . . . . 3 . . . 1 2 . . . . . . . . 4 3 3 . . 7 . Assault 20 | . . . . . . . . . . . . . . . . . . . . . 1 1 1 11 6 Garrison 6 | . . . . . . . 3 . . . . . . . . . . . . . . . . 3 . Intercept . | . . . . . . . . . . . . . . . . . . . . . . . . . . Searches Triggered . | . . . . . . . . . . . . . . . . . . . . . . . . . . Construction Impeded 2 | . . . . . . . . . . . . . . . . . . . . . . . . 2 . Haulers Reinforced 5 | . . . . . . . . . . . . . . . . . . . 2 1 . . . 2 . Active Scanning Responses . | . . . . . . . . . . . . . . . . . . . . . . . . . . Cargo Convoy Interrupts . | . . . . . . . . . . . . . . . . . . . . . . . . . . Stealth | -11 -10 -10 -10 -9 -8 -7 -7 -7 -5 -5 -5 -5 -5 -4 -4 -4 -4 -3 -3 -3 -3 -2 -2 -1 -1 --------- Run | Yrd Mat Min Exi Min Mat Fac Sto Rec Fac Ext Cet Arc Hub Fac Upp Upp Zhi Pro Res Qua Sec Res Tes Acc Com Distress Signals 22 | . 2 . . . 2 . . 1 . 5 2 . 1 . . . . . 2 . 1 . 1 4 1 Communications Jammed 67 | . . . . . . . . . 1 7 . . . 2 2 . . . 1 . 23 3 28 . . Distress Signals 67 | . . . . . . . . . 1 7 . . . 2 2 . . . 1 . 23 3 28 . . Times Spotted 469 | . 13 . . 11 38 1 20 7 26 41 10 4 11 19 6 5 . 6 27 12 50 18 29 80 35 Peak Tracking Total 14 | . 3 . . 4 6 1 6 2 3 6 5 1 2 6 3 4 . 3 4 3 11 5 5 9 14 Tactical Retreats 43 | . 2 . . 2 8 . 1 . 3 2 . . . 2 . . . . . 1 6 1 2 12 1 Traps | -11 -10 -10 -10 -9 -8 -7 -7 -7 -5 -5 -5 -5 -5 -4 -4 -4 -4 -3 -3 -3 -3 -2 -2 -1 -1 ------- Run | Yrd Mat Min Exi Min Mat Fac Sto Rec Fac Ext Cet Arc Hub Fac Upp Upp Zhi Pro Res Qua Sec Res Tes Acc Com Traps Triggered 29 | . 2 . . . 1 . . . 2 8 . . . . . . . . 2 1 1 . 2 5 5 Indirectly 5 | . . . . . . . . . . . . . . . . . . . . . . . . 1 4 Trap Hack Attempts . | . . . . . . . . . . . . . . . . . . . . . . . . . . Triggered . | . . . . . . . . . . . . . . . . . . . . . . . . . . Disarmed . | . . . . . . . . . . . . . . . . . . . . . . . . . . Reprogrammed . | . . . . . . . . . . . . . . . . . . . . . . . . . . Reused . | . . . . . . . . . . . . . . . . . . . . . . . . . . Traps Extracted . | . . . . . . . . . . . . . . . . . . . . . . . . . . Installed . | . . . . . . . . . . . . . . . . . . . . . . . . . . Triggered 2 | . . 1 . . . . . . . . . . . . . . . 1 . . . . . . . Machines | -11 -10 -10 -10 -9 -8 -7 -7 -7 -5 -5 -5 -5 -5 -4 -4 -4 -4 -3 -3 -3 -3 -2 -2 -1 -1 ---------- Run | Yrd Mat Min Exi Min Mat Fac Sto Rec Fac Ext Cet Arc Hub Fac Upp Upp Zhi Pro Res Qua Sec Res Tes Acc Com Machines Disabled 43 | . . . . . . . . . 2 1 1 1 2 3 . . . . 1 2 12 . 11 5 2 Max in Single Turn 2 | . . . . . . . . . 2 1 1 . . . . . . . 1 1 2 . 2 1 1 Garrison Access 5 | . . . . . . . . . . . . . . . . . . . 2 1 . 1 . 1 . Network Hub 1 | . . . . . . . . . . . . . 1 . . . . . . . . . . . . Machines Repaired . | . . . . . . . . . . . . . . . . . . . . . . . . . . Machines Dismantled . | . . . . . . . . . . . . . . . . . . . . . . . . . . Machines Sabotaged 1 | . . . . . . . . . . . . . 1 . . . . . . . . . . . . Overloaded Fab Kills . | . . . . . . . . . . . . . . . . . . . . . . . . . . Hacking | -11 -10 -10 -10 -9 -8 -7 -7 -7 -5 -5 -5 -5 -5 -4 -4 -4 -4 -3 -3 -3 -3 -2 -2 -1 -1 --------- Run | Yrd Mat Min Exi Min Mat Fac Sto Rec Fac Ext Cet Arc Hub Fac Upp Upp Zhi Pro Res Qua Sec Res Tes Acc Com Machines Accessed 104 | . 8 . 2 . 4 1 4 12 7 9 1 . 4 7 . . 4 . 2 8 9 2 9 9 2 Terminals 74 | . 6 . . . 4 1 3 5 1 9 1 . 4 6 . . . . . 7 9 1 9 6 2 Fabricators 3 | . . . . . . . . . 1 . . . . 1 . . . . . . . . . 1 . Repair Stations . | . . . . . . . . . . . . . . . . . . . . . . . . . . Recycling Units 12 | . 2 . . . . . . 6 4 . . . . . . . . . . . . . . . . Scanalyzers . | . . . . . . . . . . . . . . . . . . . . . . . . . . Garrison Access 8 | . . . . . . . 1 . 1 . . . . . . . . . 2 1 . 1 . 2 . Total Hacks 280 | . 13 . 2 . 9 1 9 29 14 28 3 . 11 23 . . 17 . 6 24 32 4 29 22 4 Successful 140 | . 10 . 2 . 4 . 5 18 3 17 . . 3 9 . . 17 . 2 13 17 3 13 3 1 Failed 140 | . 3 . . . 5 1 4 11 11 11 3 . 8 14 . . . . 4 11 15 1 16 19 3 Catastrophic 38 | . . . . . . . 1 2 3 . 2 . 2 6 . . . . . 4 1 1 6 9 1 Database Lockouts . | . . . . . . . . . . . . . . . . . . . . . . . . . . Manual 171 | . 10 . 1 . 8 1 5 15 6 19 1 . 10 12 . . . . . 16 23 3 26 11 4 Terminals 215 | . 10 . . . 9 1 8 16 3 28 3 . 11 21 . . . . . 22 32 3 29 15 4 Fabricators 7 | . . . . . . . . . 3 . . . . 2 . . . . . . . . . 2 . Repair Stations . | . . . . . . . . . . . . . . . . . . . . . . . . . . Recycling Units 20 | . 3 . . . . . . 11 6 . . . . . . . . . . . . . . . . Scanalyzers . | . . . . . . . . . . . . . . . . . . . . . . . . . . Garrison Access 17 | . . . . . . . 1 . 2 . . . . . . . . . 6 2 . 1 . 5 . Terminal Hacks 63 | . 1 . 2 . 3 . 4 5 . 9 . . 1 4 . . 17 . . 4 7 . 5 1 . Record 6 | . . . 1 . . . . . . . . . . . . . 5 . . . . . . . . Part Schematic 6 | . . . . . . . . 1 . . . . . 1 . . 4 . . . . . . . . Robot Analysis 4 | . . . . . . . . . . . . . . . . . 4 . . . . . . . . Prototype ID Bank 5 | . . . . . 1 . . . . . . . . . . . 4 . . . . . . . . Open Door 8 | . . . . . . . 2 . . 4 . . . . . . . . . . 1 . 1 . . Level Access Points 1 | . . . . . . . . . . . . . 1 . . . . . . . . . . . . Branch Access Points 3 | . . . . . 1 . . . . . . . . 1 . . . . . . . . . 1 . Terminal Index 2 | . . . . . . . . . . . . . . 1 . . . . . . . . 1 . . Alert Level 4 | . . . . . . . . . . . . . . 1 . . . . . 1 1 . 1 . . Unreport Threat 5 | . . . . . . . . 1 . 1 . . . . . . . . . . 1 . 2 . . Locate Traps 4 | . 1 . . . . . 1 . . 1 . . . . . . . . . . 1 . . . . Recall Reinforcements 2 | . . . . . . . . . . . . . . . . . . . . 2 . . . . . Zone Layout 10 | . . . . . 1 . 1 1 . 3 . . . . . . . . . 1 3 . . . . Derelict Proto ID Bank 1 | . . . 1 . . . . . . . . . . . . . . . . . . . . . . Release Object 2 | . . . . . . . . 2 . . . . . . . . . . . . . . . . . Fabricator Hacks 2 | . . . . . . . . . . . . . . 2 . . . . . . . . . . . Load Schematic 1 | . . . . . . . . . . . . . . 1 . . . . . . . . . . . Build 1 | . . . . . . . . . . . . . . 1 . . . . . . . . . . . Repair Station Hacks . | . . . . . . . . . . . . . . . . . . . . . . . . . . Recycling Unit Hacks 10 | . 2 . . . . . . 6 2 . . . . . . . . . . . . . . . . Retrieve Components 10 | . 2 . . . . . . 6 2 . . . . . . . . . . . . . . . . Scanalyzer . | . . . . . . . . . . . . . . . . . . . . . . . . . . Garrison Access Hacks 5 | . . . . . . . . . . . . . . . . . . . 2 1 . 1 . 1 . Seal Access 5 | . . . . . . . . . . . . . . . . . . . 2 1 . 1 . 1 . Unauthorized Hacks 60 | . 7 . . . 1 . 1 7 1 8 . . 2 3 . . . . . 8 10 2 8 1 1 Terminals 56 | . 7 . . . 1 . 1 5 . 8 . . 2 3 . . . . . 8 10 2 8 . 1 Track 1 | . . . . . . . . 1 . . . . . . . . . . . . . . . . . Assimilate 4 | . . . . . . . . . . . . . . . . . . . . 2 . 1 1 . . Botnet 22 | . 2 . . . . . 1 1 . 2 . . 1 2 . . . . . 2 5 1 4 . 1 Disrupt 1 | . . . . . . . . . . 1 . . . . . . . . . . . . . . . Skim 27 | . 5 . . . 1 . . 3 . 5 . . . 1 . . . . . 4 5 . 3 . . Sabotage 1 | . . . . . . . . . . . . . 1 . . . . . . . . . . . . Fabricators 2 | . . . . . . . . . 1 . . . . . . . . . . . . . . 1 . Fabnet 2 | . . . . . . . . . 1 . . . . . . . . . . . . . . 1 . Repair Stations . | . . . . . . . . . . . . . . . . . . . . . . . . . . Recycling Units 2 | . . . . . . . . 2 . . . . . . . . . . . . . . . . . Tunnel 2 | . . . . . . . . 2 . . . . . . . . . . . . . . . . . Scanalyzers . | . . . . . . . . . . . . . . . . . . . . . . . . . . Garrison Access . | . . . . . . . . . . . . . . . . . . . . . . . . . . Data Cores Recovered 8 | . 1 . . . . . . . . . . . . 1 . . . . . 2 2 . 1 . 1 Used . | . . . . . . . . . . . . . . . . . . . . . . . . . . Hacking Detections 78 | . 6 . . . 4 1 3 5 7 6 1 . 4 7 . . . . . 6 8 1 8 9 2 Full Trace Events 9 | . . . . . . . 1 . 1 . . . 2 1 . . . . . . . . 1 3 . Feedback Events 1 | . . . . . . . . . . . . . . . . . . . . . . . . 1 . Corruption 1 | . . . . . . . . . . . . . . . . . . . . . . . . 1 . Feedback Blocked . | . . . . . . . . . . . . . . . . . . . . . . . . . . Robot Schematics Acquired . | . . . . . . . . . . . . . . . . . . . . . . . . . . Robots Built . | . . . . . . . . . . . . . . . . . . . . . . . . . . Authchips . | . . . . . . . . . . . . . . . . . . . . . . . . . . Time . | . . . . . . . . . . . . . . . . . . . . . . . . . . Total Robot Build Rating . | . . . . . . . . . . . . . . . . . . . . . . . . . . Part Schematics Acquired 10 | . . . . . . . . 1 . . . . . 1 . . 4 . . . . . 4 . . Parts Built 1 | . . . . . . . . . . . . . . 1 . . . . . . . . . . . Authchips . | . . . . . . . . . . . . . . . . . . . . . . . . . . Time 25 | . . . . . . . . . . . . . . 25 . . . . . . . . . . . Total Part Build Rating 1 | . . . . . . . . . . . . . . 1 . . . . . . . . . . . Parts Repaired . | . . . . . . . . . . . . . . . . . . . . . . . . . . Time . | . . . . . . . . . . . . . . . . . . . . . . . . . . Parts Recycled . | . . . . . . . . . . . . . . . . . . . . . . . . . . Recycled Matter . | . . . . . . . . . . . . . . . . . . . . . . . . . . Retrieved Matter . | . . . . . . . . . . . . . . . . . . . . . . . . . . Retrieved Components 27 | . 9 . . . . . . 18 . . . . . . . . . . . . . . . . . Parts Scanalyzed . | . . . . . . . . . . . . . . . . . . . . . . . . . . Part Schematics Acquired . | . . . . . . . . . . . . . . . . . . . . . . . . . . Parts Damaged . | . . . . . . . . . . . . . . . . . . . . . . . . . . Bothacking | -11 -10 -10 -10 -9 -8 -7 -7 -7 -5 -5 -5 -5 -5 -4 -4 -4 -4 -3 -3 -3 -3 -2 -2 -1 -1 ------------ Run | Yrd Mat Min Exi Min Mat Fac Sto Rec Fac Ext Cet Arc Hub Fac Upp Upp Zhi Pro Res Qua Sec Res Tes Acc Com Used RIF Installer . | . . . . . . . . . . . . . . . . . . . . . . . . . . Robots Hacked 4 | . . . . . . . . . . . . . . . . . . . 2 . 1 . . . 1 Non-combat . | . . . . . . . . . . . . . . . . . . . . . . . . . . Combat 4 | . . . . . . . . . . . . . . . . . . . 2 . 1 . . . 1 Robot Hacks Applied 1 | . . . . . . . . . . . . . . . . . . . . . . . . . 1 parse_system 1 | . . . . . . . . . . . . . . . . . . . . . . . . . 1 Relay Couplers Released 3 | . . . . . . . . . . . . . . . . . . . . . 3 . . . . Programmers 3 | . . . . . . . . . . . . . . . . . . . . . 3 . . . . Fabnet Peak Effective % 3 | . . . . . . . . . . . . . . 3 3 3 3 1 1 1 1 . . . . Autooverrided 3 | . . . . . . . . . . . . . . . . . . . 2 . 1 . . . . Robots Rewired 20 | . . . . . . . . . . 20 . . . . . . . . . . . . . . . Allies Hacked . | . . . . . . . . . . . . . . . . . . . . . . . . . . Hacks Repelled . | . . . . . . . . . . . . . . . . . . . . . . . . . . Allies | -11 -10 -10 -10 -9 -8 -7 -7 -7 -5 -5 -5 -5 -5 -4 -4 -4 -4 -3 -3 -3 -3 -2 -2 -1 -1 -------- Run | Yrd Mat Min Exi Min Mat Fac Sto Rec Fac Ext Cet Arc Hub Fac Upp Upp Zhi Pro Res Qua Sec Res Tes Acc Com Total Allies 40 | . . . . 2 . . . . . 28 5 . . . . . . . 2 1 1 . 1 . . Largest Group 13 | . . . . 2 . . . . . 13 7 7 6 3 . . . . 1 1 1 . 1 . . Highest-Rated Group 664 | . . . . 39 . . . . . 362 664 664 505 281 . . . . 56 26 30 . 45 . . Highest-Rated Ally 159 | . . . . 31 . . . . . 159 159 159 96 96 . . . . 56 26 30 . 45 . . Total Orders 2 | . . . . . . . . . 1 . . . 1 . . . . . . . . . . . . STAY 1 | . . . . . . . . . . . . . 1 . . . . . . . . . . . . EXPLORE 1 | . . . . . . . . . 1 . . . . . . . . . . . . . . . . Ally Attacks 316 | . . . . 18 . . . . . 159 19 18 71 24 . . . . 5 . 2 . . . . Total Damage 8665 | . . . . 255 . . . . . 2973 635 782 2898 819 . . . . 260 . 43 . . . . Kills 52 | . . . . 5 . . . . . 16 5 3 18 4 . . . . . . 1 . . . . Allies Corrupted . | . . . . . . . . . . . . . . . . . . . . . . . . . . Allies Melted . | . . . . . . . . . . . . . . . . . . . . . . . . . . Intel | -11 -10 -10 -10 -9 -8 -7 -7 -7 -5 -5 -5 -5 -5 -4 -4 -4 -4 -3 -3 -3 -3 -2 -2 -1 -1 ------- Run | Yrd Mat Min Exi Min Mat Fac Sto Rec Fac Ext Cet Arc Hub Fac Upp Upp Zhi Pro Res Qua Sec Res Tes Acc Com Robot Analysis Total 4 | . . . . . . . . . . . . . . . . . 4 . . . . . . . . Derelict Logs Recovered 5 | . . 1 . 1 . . . . . . . . . . 2 1 . . . . . . . . . Drone Launches 3 | . . . . . . . . . 3 . . . . . . . . . . . . . . . . Drone Recoveries . | . . . . . . . . . . . . . . . . . . . . . . . . . . Exploration | -11 -10 -10 -10 -9 -8 -7 -7 -7 -5 -5 -5 -5 -5 -4 -4 -4 -4 -3 -3 -3 -3 -2 -2 -1 -1 ------------- Run | Yrd Mat Min Exi Min Mat Fac Sto Rec Fac Ext Cet Arc Hub Fac Upp Upp Zhi Pro Res Qua Sec Res Tes Acc Com Turns Passed 26358 | 68 1574 275 310 672 2325 305 760 1896 1526 1635 462 123 370 706 660 562 619 1139 2644 1108 2161 775 1604 1566 513 Spaces Moved 15910 | 36 770 230 230 472 884 164 269 877 637 862 256 65 273 472 597 416 170 434 1266 925 1573 552 1165 1787 528 Core 1 | 1 . . . . . . . . . . . . . . . . . . . . . . . . . Treads 5193 | 35 770 11 . . 720 164 120 330 66 . . . . 239 597 416 158 23 . . 173 552 819 . . Legs 4054 | . . . . . . . . 497 226 . . . . . . . 12 411 536 . . . 222 1630 520 Wheels 1434 | . . 219 230 472 164 . 149 50 . . . . . . . . . . 150 . . . . . . Hover 2921 | . . . . . . . . . . . . . . . . . . . 355 925 1372 . 116 153 . Flight 2259 | . . . . . . . . . 345 862 256 65 273 233 . . . . 225 . . . . . . Fastest Speed 47 | 50 160 110 110 110 125 155 140 120 105 105 105 105 105 97 97 97 97 155 79 79 79 79 79 47 47 Average Speed 111 | 156 160 112 110 122 153 158 179 168 136 105 105 105 105 100 97 97 132 179 178 79 79 79 87 53 47 Slowest Speed 280 | 160 160 160 110 125 240 160 245 268 217 105 105 105 105 105 97 97 192 218 280 79 79 141 141 123 47 Overloaded Moves . | . . . . . . . . . . . . . . . . . . . . . . . . . . Propulsion Burnouts . | . . . . . . . . . . . . . . . . . . . . . . . . . . Robots Hopped 25 | . . . . . . . . . 2 7 . . 10 6 . . . . . . . . . . . Cave-ins Triggered . | . . . . . . . . . . . . . . . . . . . . . . . . . . Teleports 1 | . . . . . . . . . . . . . . . . . . . . . . . . 1 . Spacefolds 19 | . . . . . . . . . . . . . . . . . . . . . 13 . 2 1 3 Exploration Rate (%) 53 | 5 97 39 60 92 52 6 33 95 22 76 87 84 15 14 80 67 61 60 32 75 72 15 82 51 25 Regions Visited 25 Branch Regions 17 Pre-discovered Areas 9 | . . . 1 1 . . . 2 . 1 . . . . 1 . 3 . . . . . . . . Known Exits Taken 19 | . . . . . . 1 1 1 1 1 1 1 1 1 1 1 1 1 1 1 1 1 1 1 . Unknown Exits Taken 6 | 1 1 1 1 1 1 . . . . . . . . . . . . . . . . . . . . Scrap Searched 9 | . . . . 2 . . . . . . . . . . 4 3 . . . . . . . . . Spaces Dug 159 | . . . . . . 2 . . . 17 . . 2 13 2 2 . 10 8 6 9 1 8 66 13 Terrain Destroyed 653 | . . . . . . 2 . 11 36 27 34 1 6 37 27 22 . 49 31 21 69 33 50 164 33 Melee 18 | . . . . . . 2 . . . 9 . . 1 1 . . . . . 4 . . 1 . . Projectile 391 | . . . . . . . . 11 10 18 3 1 5 13 12 5 . 32 31 17 45 33 49 75 31 AOE 244 | . . . . . . . . . 26 . 31 . . 23 15 17 . 17 . . 24 . . 89 2 Terrain Rammed . | . . . . . . . . . . . . . . . . . . . . . . . . . . Walls Destroyed . | . . . . . . . . . . . . . . . . . . . . . . . . . . Machines Disabled . | . . . . . . . . . . . . . . . . . . . . . . . . . . Actions | -11 -10 -10 -10 -9 -8 -7 -7 -7 -5 -5 -5 -5 -5 -4 -4 -4 -4 -3 -3 -3 -3 -2 -2 -1 -1 --------- Run | Yrd Mat Min Exi Min Mat Fac Sto Rec Fac Ext Cet Arc Hub Fac Upp Upp Zhi Pro Res Qua Sec Res Tes Acc Com Total 22937 | 45 1036 246 288 548 1684 198 439 1240 1199 1505 437 112 334 634 655 565 561 770 1576 1238 2269 831 1604 2216 707 Wait 4780 | . 190 10 55 42 651 9 57 279 447 285 141 36 48 99 28 136 363 290 213 215 403 163 259 262 99 Move 15808 | 35 769 229 229 471 883 163 268 876 632 848 255 64 254 459 596 415 169 433 1265 924 1557 551 1158 1783 522 Hop 22 | . . . . . . . . . 2 6 . . 8 6 . . . . . . . . . . . Pick Up 180 | 4 15 2 2 7 16 4 15 8 14 13 3 . . 2 5 1 3 . 10 4 22 8 12 5 5 Fast Attach 208 | 6 1 . . 1 7 2 9 7 9 6 3 . 4 1 . . 8 . 10 12 49 26 26 17 4 Attach 77 | . 1 . . . 7 2 7 6 8 1 . . . 1 . 1 . 3 2 . 13 5 7 9 4 Detach 27 | . . . . . . . 2 5 . 2 1 . . . . . . 1 . . 3 5 3 5 . Swap 200 | . 8 2 . 3 8 5 10 5 7 9 7 2 1 16 5 2 5 2 10 15 31 8 8 18 13 Drop 334 | . 11 2 2 11 23 6 16 19 14 19 9 1 5 3 2 1 10 . 18 15 54 33 37 16 7 Fire 971 | . 41 1 . 13 89 5 55 25 34 66 18 9 12 44 19 9 3 41 46 36 129 32 92 101 51 Melee 110 | . . . . . . 2 . 10 32 33 . . 2 3 . . . . . 17 8 . 2 . 1 Ram . | . . . . . . . . . . . . . . . . . . . . . . . . . . Kick . | . . . . . . . . . . . . . . . . . . . . . . . . . . Crush . | . . . . . . . . . . . . . . . . . . . . . . . . . . Escape Stasis 10 | . . . . . . . . . . 7 . . . . . . . . 2 . . . . . 1 Rewire 210 | . . . . . . . . . . 210 . . . . . . . . . . . . . . . Trap . | . . . . . . . . . . . . . . . . . . . . . . . . . . Miscellaneous . | . . . . . . . . . . . . . . . . . . . . . . . . . . Route ------- -11/Scrapyard -10/Materials (discovered 6 exits: *Mat x3 / [*Min x2] / Sub) -10/Mines (discovered 2 exits: *Mat / *Exi) -10/Exiles (discovered 2 exits: [*Min x2]) -9/Mines -8/Materials -7/Factory (discovered 2 exits: *Sto x2) -7/Storage -7/Recycling -5/Factory (discovered 2 exits: *Fac / *Ext) -5/Extension (discovered 2 exits: *Fac / *Cet) -5/Cetus (discovered 2 exits: *Fac / *Arc) -5/Archives (discovered 3 exits: *Fac / *Hub x2) -5/Hub_04(d) (discovered 4 exits: *Fac x4) -4/Factory (discovered 3 exits: *Upp x2 / Arm) -4/Upper Caves -4/Upper Caves (discovered 2 exits: *Res / *Zhi) -4/Zhirov -3/Proximity Caves -3/Research (discovered 4 exits: *Res x3 / *Qua) -3/Quarantine -3/Section 7 -2/Research -2/Testing -1/Access -1/Command To Fleet Rendezvous History --------- Turn | Location | Event 27 | -11/Scrapyard | Discovered new exit (range 16) 69 | -11/Scrapyard | Entered Materials 69 | -10/Materials | Discovered new exit (range 15) 171 | -10/Materials | Met 8R-AWN 180 | -10/Materials | Discovered new exit (range 17) 314 | -10/Materials | Build established: Mutant 318 | -10/Materials | Discovered new exit (range 10) 983 | -10/Materials | Discovered new exit (range 16) 1269 | -10/Materials | Derelicts attacked the area 1293 | -10/Materials | Identified exit to Materials 1328 | -10/Materials | Build established: Scavenger-Mutant 1348 | -10/Materials | Learned Storage non-interactive machine intel 1395 | -10/Materials | Learned Storage security intel 1434 | -10/Materials | Loaded intel: 22 trap records 1540 | -10/Materials | Identified exit to Subcaves 1643 | -10/Materials | Entered Mines 1644 | -10/Mines | Assembled infested the area 1644 | -10/Mines | Followed 8R-AWN into the Mines 1691 | -10/Mines | Met a Derelict bent on vengeance 1715 | -10/Mines | Discovered exit to Materials (range 15) 1719 | -10/Mines | A weapon hastily lodged in a ceiling crevice suddenly fell to the ground 1773 | -10/Mines | Discovered new exit (range 5) 1918 | -10/Mines | Entered Exiles 1933 | -10/Exiles | Discovered new exit (range 15) 1948 | -10/Exiles | Welcomed by 8R-AWN 1965 | -10/Exiles | Met EX-HEX 1994 | -10/Exiles | Met EX-BIN 2009 | -10/Exiles | Aligned with FarCom system 2010 | -10/Exiles | Given EX-Vault access code 2035 | -10/Exiles | Opened EX-Vault 2043 | -10/Exiles | Found Superbattery 2047 | -10/Exiles | Found Longsword +1 2110 | -10/Exiles | Warned to stay clear of 0b10 Research branches 2145 | -10/Exiles | Met EX-DEC 2152 | -10/Exiles | Learned location of Zion (-6) 2199 | -10/Exiles | Discovered new exit (range 14) 2228 | -10/Exiles | Stole two prototypes: Superbattery, Longsword +1 2228 | -10/Exiles | Entered Mines 2315 | -9/Mines | Joined a pair of Derelicts in attacking an 0b10 outpost 2638 | -9/Mines | Discovered new exit (range 9) 2837 | -9/Mines | Found a hidden stash of uninstalled traps 2900 | -9/Mines | Entered Materials 2900 | -8/Materials | Evolved 4 slots: Propulsion x1, Utility x3 4156 | -8/Materials | Build established: Mutant 5079 | -8/Materials | Discovered new exit (range 5) 5225 | -8/Materials | Entered Factory 5225 | -7/Factory | Evolved 2 slots: Utility x2 5226 | -7/Factory | Identified exit to Storage 5227 | -7/Factory | FarCom data flow suspended 5530 | -7/Factory | Entered Storage 5532 | -7/Storage | Loaded intel: 24 non-interactive machine locations 5680 | -7/Storage | Build established: Scavenger-Mutant 5973 | -7/Storage | Garrison activated, responded to threat 6056 | -7/Storage | Lost 5 parts (1p3n1w) 6093 | -7/Storage | Destroyed 9 combat bots 6286 | -7/Storage | Used back door to open Recycling access 6286 | -7/Storage | Discovered new exit (range 3) 6288 | -7/Storage | Identified exit to Recycling 6290 | -7/Storage | Entered Recycling 6388 | -7/Recycling | Scanned before Scraplab entrance 6676 | -7/Recycling | Lost 5 parts (2n1u2w) 6936 | -7/Recycling | Angered Scraplab inhabitants 6974 | -7/Recycling | Lost 3 parts (1n2u) 7176 | -7/Recycling | Found Prototype Device 7176 | -7/Recycling | Identified Scrap Engine 7484 | -7/Recycling | Build established: Mutant 8085 | -7/Recycling | Discovered new exit (range 12) 8185 | -7/Recycling | Identified exit to Factory 8186 | -7/Recycling | Entered Factory 8186 | -5/Factory | Evolved 4 slots: Propulsion x1, Utility x2, Weapon x1 8851 | -5/Factory | Discovered new exit (range 10) 8866 | -5/Factory | Identified exit to Factory 9168 | -5/Factory | Lost 3 parts (1p2u) 9340 | -5/Factory | Discovered new exit (range 9) 9576 | -5/Factory | Identified exit to Extension 9712 | -5/Factory | Entered Extension 10655 | -5/Extension | Rescued a captive Derelict 10658 | -5/Extension | Rescued a captive Derelict 10733 | -5/Extension | Build established: Commander-Construct 10795 | -5/Extension | Spotted B-75 Beast 10825 | -5/Extension | Spotted B-75 Beast 10860 | -5/Extension | Rescued a captive Derelict 10862 | -5/Extension | Rescued a captive Derelict 10878 | -5/Extension | Destroyed B-75 Beast 10897 | -5/Extension | Lost 12 allies 11019 | -5/Extension | Lost 3 allies 11035 | -5/Extension | Rescued a captive Derelict 11062 | -5/Extension | Learned location of 1 exit from Research 11093 | -5/Extension | Rescued a captive Derelict 11094 | -5/Extension | Rescued a captive Derelict 11095 | -5/Extension | Learned Quarantine interactive machine intel 11116 | -5/Extension | Learned Research machine intel 11129 | -5/Extension | Learned location of 2 exits from Proximity Caves 11133 | -5/Extension | Build established: Scavenger-Construct 11134 | -5/Extension | Learned Armory stockpile data 11135 | -5/Extension | Learned location of 2 exits from Proximity Caves 11136 | -5/Extension | Learned Quarantine stockpile data 11140 | -5/Extension | Learned Armory stockpile data 11153 | -5/Extension | Lost 3 allies 11156 | -5/Extension | Learned location of 1 exit from Research 11156 | -5/Extension | Rescued A7 11303 | -5/Extension | Discovered exit to Factory (range 13) 11306 | -5/Extension | Discovered new exit (range 6) 11323 | -5/Extension | Identified exit to Cetus 11347 | -5/Extension | Entered Cetus 11347 | -5/Cetus | Accompanied by 4 allies (A7) 11352 | -5/Cetus | Acquired a Cetus Manufacturing Module code from A7 11365 | -5/Cetus | Spotted Cetus Guard 11365 | -5/Cetus | Spotted Cetus Guard 11366 | -5/Cetus | Spotted Cetus Guard 11366 | -5/Cetus | Spotted Cetus Guard 11371 | -5/Cetus | Allies destroyed Cetus Guard 11379 | -5/Cetus | Destroyed Cetus Guard 11381 | -5/Cetus | Allies destroyed Cetus Guard 11388 | -5/Cetus | Destroyed Cetus Guard 11452 | -5/Cetus | Started Cetus Manufacturing Module 11464 | -5/Cetus | Escorted A7 to Cetus Mainframe 11477 | -5/Cetus | Manufactured an Enhanced Grunt 11502 | -5/Cetus | Manufactured an Enhanced Grunt 11527 | -5/Cetus | Manufactured an Enhanced Grunt 11552 | -5/Cetus | Manufactured an Enhanced Grunt 11577 | -5/Cetus | Manufactured an Enhanced Grunt 11619 | -5/Cetus | Discovered new exit (range 21) 11649 | -5/Cetus | Spotted Cetus Guard 11649 | -5/Cetus | Spotted Cetus Guard 11651 | -5/Cetus | Spotted Cetus Guard 11654 | -5/Cetus | Spotted Cetus Guard 11654 | -5/Cetus | Discovered exit to Factory (range 22) 11656 | -5/Cetus | Allies destroyed Cetus Guard 11658 | -5/Cetus | Destroyed Cetus Guard 11664 | -5/Cetus | Allies destroyed Cetus Guard 11667 | -5/Cetus | Allies destroyed Cetus Guard 11678 | -5/Cetus | Met Revision 17 11778 | -5/Cetus | Identified exit to Archives 11809 | -5/Cetus | Entered Archives 11809 | -5/Archives | Accompanied by 7 allies (A7) 11814 | -5/Archives | Received a hacking code to weaken MAIN.C 11875 | -5/Archives | Build established: Commander-Construct 11877 | -5/Archives | Discovered new exit (range 22) 11897 | -5/Archives | Discovered new exit (range 19) 11907 | -5/Archives | Discovered exit to Factory (range 21) 11924 | -5/Archives | Identified exit to Hub_04(d) 11932 | -5/Archives | Entered Hub_04(d) 11932 | -5/Hub_04(d) | Accompanied by 6 allies 12044 | -5/Hub_04(d) | Network Hub disabled 12233 | -5/Hub_04(d) | Found Prototype Device 12233 | -5/Hub_04(d) | Identified Exp. Thermal Shield 12302 | -5/Hub_04(d) | Entered Factory 12302 | -4/Factory | Accompanied by 3 allies 12302 | -4/Factory | Evolved 2 slots: Power x1, Propulsion x1 12665 | -4/Factory | Identified exit to Upper Caves 12665 | -4/Factory | Identified exit to Armory 12714 | -4/Factory | Found Powered Armor 12742 | -4/Factory | Fabricated Hcp. Storage Unit (x1) 13008 | -4/Factory | Entered Upper Caves 13008 | -4/Upper Caves | Spotted 4U-GK9(f) 13008 | -4/Upper Caves | Spotted O1-4VZ(f) 13009 | -4/Upper Caves | Spotted VK-WTE(f) 13010 | -4/Upper Caves | Encountered a Master Thief 13010 | -4/Upper Caves | Encountered a Master Thief 13010 | -4/Upper Caves | Encountered a Master Thief 13011 | -4/Upper Caves | Longsword +1 stolen by Master Thief 13011 | -4/Upper Caves | Superbattery stolen by Master Thief 13016 | -4/Upper Caves | Centrium Medium Armor Plating stolen by Master Thief 13222 | -4/Upper Caves | Build established: Skirmisher 13453 | -4/Upper Caves | Attracted the attention of an 0b10 checkpoint 13489 | -4/Upper Caves | Learned location of Quarantine (-3) 13501 | -4/Upper Caves | Learned Research interactive machine intel 13577 | -4/Upper Caves | Discovered new exit (range 7) 13581 | -4/Upper Caves | Identified exit to Upper Caves 13668 | -4/Upper Caves | Entered another Upper Caves area 13675 | -4/Upper Caves | Discovered new exit (range 9) 13760 | -4/Upper Caves | Learned Research security intel 14228 | -4/Upper Caves | Discovered new exit (range 5) 14229 | -4/Upper Caves | Identified exit to Zhirov 14230 | -4/Upper Caves | Entered Zhirov 14230 | -4/Zhirov | Discovered new exit (range 3) 14249 | -4/Zhirov | Met Zhirov 14269 | -4/Zhirov | Learned location of Testing (-2) 14274 | -4/Zhirov | Zhirov requested help retrieving the SGEMP Prototype 14289 | -4/Zhirov | Found Alien Artifact 14289 | -4/Zhirov | Identified Integrated Dissipator 14289 | -4/Zhirov | Installed Integrated Dissipator, increased core heat dissipation (+20) 14304 | -4/Zhirov | Found Alien Artifact 14844 | -4/Zhirov | Identified exit to Proximity Caves 14849 | -4/Zhirov | Entered Proximity Caves 14850 | -3/Proximity Caves | Identified exit to Research 15214 | -3/Proximity Caves | Attracted the attention of an 0b10 checkpoint 15282 | -3/Proximity Caves | Lost 3 parts (1p1u1w) 15988 | -3/Proximity Caves | Entered Research 15988 | -3/Research | Evolved 2 slots: Utility x2 15989 | -3/Research | Identified exit to Quarantine 15989 | -3/Research | Identified exit to Research 15991 | -3/Research | Loaded intel: 118 machine locations 15992 | -3/Research | Loaded intel: 45 interactive machine locations 16188 | -3/Research | Revision forces began assault on 0b10 16253 | -3/Research | Met up with Revision 17++ 16551 | -3/Research | Discovered exit to Research (range 18) 16677 | -3/Research | Build established: Scavenger-Skirmisher 16688 | -3/Research | Research terminal network offline 16882 | -3/Research | Spotted Striker 16959 | -3/Research | Lost 7 allies 17207 | -3/Research | Spotted Striker 17232 | -3/Research | Destroyed Striker 17406 | -3/Research | Spotted Striker 17445 | -3/Research | Destroyed Striker 17545 | -3/Research | Build established: Skirmisher 18045 | -3/Research | Build established: Scavenger-Skirmisher 18520 | -3/Research | Discovered exit to Research (range 20) 18632 | -3/Research | Entered Quarantine 18634 | -3/Quarantine | Loaded intel: 21 interactive machine locations 18786 | -3/Quarantine | Build established: Scavenger-Ninja 18848 | -3/Quarantine | Found Alien Artifact 19268 | -3/Quarantine | Found Gamma Bomb Array 19294 | -3/Quarantine | Found Alien Artifact 19294 | -3/Quarantine | Identified Core Reset Matrix 19294 | -3/Quarantine | Identified Transdimensional Reconstructor 19294 | -3/Quarantine | Identified Subatomic Replicator 19294 | -3/Quarantine | Used Core Reset Matrix 19298 | -3/Quarantine | Detected hypermatrix surge 19298 | -3/Quarantine | Sensed 14 artifacts in vicinity 19639 | -3/Quarantine | Build established: Scavenger-Scout 19678 | -3/Quarantine | Spotted Fortress 19732 | -3/Quarantine | Discovered new exit (range 5) 19734 | -3/Quarantine | Identified exit to Section 7 19740 | -3/Quarantine | Entered Section 7 19741 | -3/Section 7 | Sensed 21 artifacts in vicinity 19766 | -3/Section 7 | Found Integrated Mediator 19766 | -3/Section 7 | Installed Integrated Mediator, increased core attachment efficiency 19828 | -3/Section 7 | Spotted S7 Guard 19844 | -3/Section 7 | Found Integrated Thermoelectric Network 19851 | -3/Section 7 | Installed Integrated Thermoelectric Network, gained heat-energy exchange potential 19925 | -3/Section 7 | Discovered exit to Research (range 22) 19967 | -3/Section 7 | Found Spacefold Activator 20104 | -3/Section 7 | Found Integrity Redistributor 20429 | -3/Section 7 | Found Unknown Device 20429 | -3/Section 7 | Identified Quantum Capacitor 20521 | -3/Section 7 | Found Prototype Device 20575 | -3/Section 7 | Identified Exp. Thermal Shield 20771 | -3/Section 7 | Spotted B-86 Titan 20999 | -3/Section 7 | Found Integrated Dissipator 21006 | -3/Section 7 | Installed Integrated Dissipator, increased core heat dissipation (+20) 21056 | -3/Section 7 | Found Prototype Device 21076 | -3/Section 7 | Identified Exp. Focal Shield 21109 | -3/Section 7 | Spotted Executioner 21109 | -3/Section 7 | Spotted Executioner 21132 | -3/Section 7 | Destroyed Executioner 21143 | -3/Section 7 | Found Prototype Device 21143 | -3/Section 7 | Identified Adv. Kinecellerator 21145 | -3/Section 7 | Destroyed Executioner 21164 | -3/Section 7 | Found Prototype Processor 21264 | -3/Section 7 | Identified Exp. Core Analyzer 21304 | -3/Section 7 | Spotted B-99 Colossus 21335 | -3/Section 7 | Found Core Expander 21335 | -3/Section 7 | Installed Core Expander, added new Weapon slot 21364 | -3/Section 7 | Found LRC Insulator 21364 | -3/Section 7 | Installed LRC Insulator, gained EM resistance (25) 21370 | -3/Section 7 | Found LRC Inertial Stabilizer 21370 | -3/Section 7 | Installed LRC Inertial Stabilizer, increased mass support (+10) 21373 | -3/Section 7 | Found LRC Armor 21373 | -3/Section 7 | Installed LRC Armor, increased core integrity (+250) 21408 | -3/Section 7 | Found Integrated Dissipator 21408 | -3/Section 7 | Installed Integrated Dissipator, increased core heat dissipation (+20) 21630 | -3/Section 7 | Spotted S7 Guard 21635 | -3/Section 7 | Found Core Membrane 21644 | -3/Section 7 | Spotted Alpha 7 21646 | -3/Section 7 | Spotted Alpha 7 21661 | -3/Section 7 | Installed Core Membrane, gained immunity to corruption 21739 | -3/Section 7 | Lost 4 parts (2p1u1w) 21780 | -3/Section 7 | First assault squad dispatched 21901 | -3/Section 7 | Entered Research 21901 | -2/Research | Evolved 2 slots: Utility x2 22547 | -2/Research | Build established: Alien-Skirmisher 22642 | -2/Research | Discovered new exit (range 12) 22651 | -2/Research | First assault squad dispatched 22665 | -2/Research | Identified exit to Testing 22676 | -2/Research | Entered Testing 22887 | -2/Testing | Found Prototype Energy Cannon 22887 | -2/Testing | Identified Hpw. Disruptor Cannon 22973 | -2/Testing | Spotted PL-HWETQJO630 23140 | -2/Testing | Destroyed PL-HWETQJO630 23147 | -2/Testing | Found Prototype Processor 23147 | -2/Testing | Identified Exp. Melee Analysis Suite 23501 | -2/Testing | Build established: Alien-Gunner 23538 | -2/Testing | Found Prototype Device 23538 | -2/Testing | Identified Thermal Barrier 23680 | -2/Testing | Spotted PD-NGHBZU7U5D 23694 | -2/Testing | Found Prototype Device 23694 | -2/Testing | Identified 2N-1CE's Frost Array 23711 | -2/Testing | First assault squad dispatched 23814 | -2/Testing | Lost 3 parts (1p2u) 23875 | -2/Testing | Discovered new exit (range 5) 23880 | -2/Testing | Identified exit to Access 24022 | -2/Testing | Found Prototype Protection 24022 | -2/Testing | Identified Hvy. Regenerative Plating 24032 | -2/Testing | Found Hvy. Regenerative Plating 24043 | -2/Testing | Found Hvy. Regenerative Plating 24280 | -2/Testing | Entered Access 24280 | -1/Access | Evolved 2 slots: Power x1, Utility x1 24368 | -1/Access | Spotted B-99 Colossus 24815 | -1/Access | Garrison activated, responded to threat 25030 | -1/Access | First assault squad dispatched 25180 | -1/Access | Destroyed 11 combat bots 25187 | -1/Access | Spotted B-99 Colossus 25643 | -1/Access | High security lockdown imminent 25689 | -1/Access | Identified exit to Command 25723 | -1/Access | High security lockdown engaged 25777 | -1/Access | Warped through subspace 25846 | -1/Access | Entered Command 26128 | -1/Command | First assault squad dispatched 26194 | -1/Command | High security lockdown imminent 26229 | -1/Command | Destroyed 12 combat bots 26247 | -1/Command | Spotted M Guard 26247 | -1/Command | Spotted M Guard 26247 | -1/Command | Spotted Combat Programmer 26248 | -1/Command | Spotted Combat Programmer 26274 | -1/Command | High security lockdown engaged 26290 | -1/Command | Met MAIN.C 26311 | -1/Command | 0b10 Conduit disabled 26314 | -1/Command | Destroyed MAIN.C Shell 26317 | -1/Command | MAIN.C activated Command garrisons 26351 | -1/Command | Discovered new exit (range 18) 26359 | *** | Heading to fleet! Last Messages --------------- 26323_ Adv. Reaction Control System destroyed. 26323_ Critical hit (Blast). 26323_ Knocked back. 26326_ Hpw. Accelerated Helical Construct/C destroyed. 26326_ Hpw. Accelerated Helical Construct/C core remains intact and functional. 26327_ Slug penetrates MAIN.C. 26327_ Slug penetrates 0b10 Conduit. 26332_ Acquired 110 matter. 26333_ Knocked back. 26338_ Penetrated by EMDS Slug. 26339_ Spacefolded through Heavy Barrier. Heavy Barrier opened. 26345_ Spacefolded through Wall. 26346_ Penetrated by Slug. 26346_ Slug penetrates Wall. 26351_ EXIT=FOUND 26353_ Knocked back. 26353_ Acquired 5 matter. 26353_ Penetrated by EMDS Slug. Map ----- +----------------------------------------------------+ | ?????????????????????????????????????????????????? | | ?????????????????????????????#######????#????????? | | ????#????????????????###+##### #### #????????? | | ????? ##"######## +????????# | | ????? #????????# | | ????????????????# #????????# | | ????????????????# #### #### #????????# | | ????????????????# ##??## ##?????????????# | | ????????????????#!! ==!#????# #??????????????# | | ????????????????#!! =! #????# #####+###??????# | | ????????????????#! =! #????# ## #??????# | | ????????????????# #????# ## #??????# | | ????????????????# #?? # ## #??????# | | ????????????????# # * + / #??????# | | ????????????????# %+ # ## #??????# | | ????????????????# s # / # ## ] #??????# | | ????????????????#/#####s ###### ####+########### | | ??????????????????????# | | ??????????????????????# | | ??????????????????????# ^ | | ??????????????????????#% ####### ##+########### | | ??????????????????????# #?????# #????????????# | | ??????????????????????# #?????# #????????????# | | ??????????????????????# ###???# #????????????# | | ??????????????????????# #???# #????????????? | | ??????????????????????# @ #???# #????????????? | | ??????????????????????# #???# #????????????? | | ??????????????????????######???# #????????????? | | ???????????????????????????????# #????????????? | | ???????????????????????????????# #????????????? | | ???????????????????????????????? ????????????? | | ???????????????????????????????? ????????????? | | ???????????????????????????????? ?????????????? | | ???????????????????????????????? ??????????????? | | ?????????????????????????????????????????????????? | | ?????????????????????????????????????????????????? | | ?????????????????????????????????????????????????? | | ?????????????????????????????????????????????????? | | ?????????????????????????????????????????????????? | | ?????????????????????????????????????????????????? | | ?????????????????????????????????????????????????? | | ?????????????????????????????????????????????????? | | ?????????????????????????????????????????????????? | | ?????????????????????????????????????????????????? | | ?????????????????????????????????????????????????? | | ?????????????????????????????????????????????????? | | ?????????????????????????????????????????????????? | | ?????????????????????????????????????????????????? | | ?????????????????????????????????????????????????? | | ?????????????????????????????????????????????????? | +----------------------------------------------------+ Best States ------------- Heat Dissipation 112 Energy Generation 77 Energy Capacity 820 Matter Stores 300 Matter Capacity 300 Sight Range 23 Robot Scan Range 16 Terrain Scan Density 10 Jamming Range 14 Power Amplification 30 Additional Mass Support 16 Armor Coverage 1200 Resistance: KI 30 Resistance: EM 50 Weapon Shielding 66 Weapon Cycling 20 Phase Shifting 15 Evasion (%) 86 Targeting Accuracy 16 Target Analysis 8 Core Analysis 11 Recoil Reduction 5 Matter Filtering 30 Energy Filtering 50 Particle Charging 30 Kinecelleration 50 Offensive Hacking 14 Item Schematics ----------------- Cld. Phase Cannon | -2/Testing | Archive Imp. Diametric Drive | -2/Testing | Archive Zero-point Reactor | -2/Testing | Archive Exp. Thermal Shield | -2/Testing | Archive Robot Schematics ------------------ None Fabricated ------------ Hcp. Storage Unit | x1 | -4/Factory Alien Tech Used ----------------- Integrated Dissipator Core Reset Matrix Integrated Mediator Integrated Thermoelectric Network Spacefold Activator Core Expander LRC Insulator LRC Inertial Stabilizer LRC Armor Core Membrane Transdimensional Reconstructor Achievements -------------- None Challenges ------------ None Game ------ Seed GunSubatomicDissipator Manual? 0 Play Time 03:27:32 Cumulative 1396.9 hours Start 2024.08.02 @ 16:49:52 End 2024.08.02 @ 22:22:56 Sessions 5 Manual Loads 0 Difficulty Rogue Special Mode None Game No. 1015 Rogue 975 Adventurer 40 Explorer 0 Win Type 2 Total 176 Types 79/8/63/2/1/4/16/2/1 Lore% 90 Gallery% 94 Achievement% 86 Wizard Run 0 Options --------- Layout 0 ASCII 0 Keyboard 0 Movement Numpad Keybinds 0 Fullscreen 0 Font 20/Terminus Map View 76x50 Zoom Use 0% Tactical HUD 1 Map Filters NONE Filters NONE Steam 1 RUN: 42d9b67e-8885-4dee-a6bc-b2a6e1692694